bitfinex-derivatives/quotes_BTCF0:USTF0_20250406
["timestamp","ask_amount","ask_price","bid_price","bid_amount"]
[1743978320597,0.36184001,78704.0,78691.0,0.1271522]
[1743978320798,0.01208002,78704.0,78697.0,0.3608]
[1743978321096,0.3608,78725.0,78701.0,0.3608]
[1743978321294,0.44184001,78725.0,78715.0,0.3608]
[1743978321503,0.187917,78729.0,78724.0,0.3608]
[1743978321689,0.00019057,78728.0,78727.0,0.3608]
[1743978321886,0.2238018,78737.0,78727.0,0.36144]
[1743978322090,0.2245218,78737.0,78732.0,0.3608]
[1743978322284,0.1270837,78734.0,78733.0,0.13532]
[1743978322489,0.1278037,78734.0,78733.0,0.13608]
[1743978322693,0.1278036,78734.0,78733.0,0.13608]
[1743978322994,0.1278036,78734.0,78733.0,0.29498845]
[1743978323503,0.00172,78734.0,78733.0,0.29998845]
[1743978323693,0.2238018,78737.0,78733.0,0.44998845]
[1743978323893,0.1270814,78736.0,78733.0,0.29998845]
[1743978324093,0.1270836,78734.0,78733.0,0.29998845]
[1743978324392,0.1278836,78734.0,78733.0,0.29998845]
[1743978324588,0.0008,78734.0,78733.0,0.29998845]
[1743978324793,0.127078,78738.0,78733.0,0.29998845]
[1743978324989,0.0645358,78742.0,78733.0,0.48768845]
[1743978325290,0.0635258,78754.0,78741.0,0.0635361]
[1743978325490,0.0635284,78751.0,78749.0,0.3608]
[1743978325701,0.1270577,78750.0,78749.0,0.36156]
[1743978326001,0.1278177,78750.0,78749.0,0.4968]
[1743978326299,0.00076,78750.0,78749.0,0.62380509]
[1743978326501,0.0635171,78765.0,78751.0,0.0635276]
[1743978326701,0.1270448,78758.0,78757.0,0.3608]
[1743978326893,0.001,78758.0,78757.0,0.36188]
[1743978327204,0.1270337,78765.0,78757.0,0.48886493]
[1743978327507,0.2,78765.0,78764.0,0.3608]
[1743978327685,0.001,78765.0,78764.0,0.3618]
[1743978327998,0.4878085,78781.0,78764.0,0.5118]
[1743978328300,0.1270206,78773.0,78772.0,0.3608]
[1743978328487,0.12806061,78773.0,78772.0,0.51327998]
[1743978328689,0.14806061,78773.0,78772.0,0.51431998]
[1743978328888,0.14806061,78773.0,78772.0,0.14531188]
[1743978329097,0.50886061,78773.0,78772.0,0.16233304]
[1743978329386,0.14806061,78773.0,78772.0,0.03434519]
[1743978329592,0.33136061,78773.0,78772.0,0.04034519]
[1743978330098,0.33136061,78773.0,78772.0,0.02332403]
[1743978330494,0.52996061,78773.0,78772.0,0.0230748]
[1743978331102,0.14806061,78773.0,78772.0,0.15002265]
[1743978331401,0.14806061,78773.0,78772.0,0.15102265]
[1743978331589,0.02104001,78773.0,78772.0,0.14502265]
[1743978331795,0.1470206,78773.0,78772.0,0.15102265]
[1743978332195,0.02,78773.0,78772.0,0.15102265]
[1743978332502,0.1470206,78773.0,78772.0,0.15102265]
[1743978334205,0.1470206,78773.0,78772.0,0.0240748]
[1743978334409,0.1470206,78773.0,78772.0,0.007]
[1743978334609,0.02,78773.0,78772.0,0.007]
[1743978334797,0.5078206,78773.0,78772.0,0.13394785]
[1743978335104,0.02,78773.0,78772.0,0.006]
[1743978335301,0.063508,78776.0,78772.0,0.49486785]
[1743978335495,0.19,78787.0,78773.0,0.21636893]
[1743978335496,0.127019,78774.0,78773.0,0.21636893]
[1743978335701,0.127019,78774.0,78773.0,0.21736893]
[1743978336007,0.01,78774.0,78773.0,0.23437126]
[1743978336203,0.0634996,78787.0,78773.0,0.49627911]
[1743978336507,0.14,78787.0,78781.0,0.3608]
[1743978336710,0.1270045,78783.0,78782.0,0.21636893]
[1743978336901,0.1270045,78783.0,78782.0,0.23437126]
[1743978337404,0.1270045,78783.0,78782.0,0.36130703]
[1743978337806,0.1370045,78783.0,78782.0,0.36130703]
[1743978338005,0.01,78783.0,78782.0,0.36130703]
[1743978338401,0.1269987,78787.0,78782.0,0.36130703]
[1743978338596,0.08,78787.0,78783.0,0.03427126]
[1743978338798,0.001,78790.0,78784.0,0.01726893]
[1743978339012,0.14940642,78809.0,78789.0,0.3608]
[1743978339306,0.14940642,78809.0,78799.0,0.3608]
[1743978339504,0.0634819,78809.0,78799.0,0.51402101]
[1743978339703,0.1269731,78803.0,78800.0,0.23364334]
[1743978339901,0.1269739,78802.0,78801.0,0.01734101]
[1743978340106,0.1269739,78802.0,78801.0,0.20894101]
[1743978340406,0.1269739,78802.0,78801.0,0.35285575]
[1743978340600,0.1569739,78802.0,78801.0,0.1718106]
[1743978340805,0.1569739,78802.0,78801.0,0.16225575]
[1743978341008,0.1569739,78802.0,78801.0,0.35185575]
[1743978341200,0.3418739,78802.0,78801.0,0.35289575]
[1743978341608,0.3418739,78802.0,78801.0,0.35789575]
[1743978342915,0.3418739,78802.0,78801.0,0.16729575]
[1743978343117,0.3418739,78802.0,78801.0,0.03934334]
[1743978343810,0.3418739,78802.0,78801.0,0.04034334]
[1743978344201,0.3418739,78802.0,78801.0,0.16724447]
[1743978344416,0.3418739,78802.0,78801.0,0.34894447]
[1743978344717,0.3418739,78802.0,78801.0,0.16724447]
[1743978345515,0.1269595,78811.0,78801.0,0.34894447]
[1743978345721,0.1,78811.0,78810.0,0.3608]
[1743978345904,0.0634558,78841.0,78810.0,0.37918101]
[1743978346211,0.1269305,78829.0,78826.0,0.3608]
[1743978346412,0.126932,78828.0,78827.0,0.39644101]
[1743978346615,0.06,78828.0,78827.0,0.39644101]
[1743978346812,0.06,78828.0,78827.0,0.41444334]
[1743978347011,0.1937,78842.0,78828.0,0.1269315]
[1743978347314,0.1269049,78845.0,78835.0,0.3608]
[1743978347502,0.1269049,78845.0,78844.0,0.3608]
[1743978347503,0.12,78845.0,78844.0,0.3608]
[1743978347702,0.12,78845.0,78844.0,0.51382101]
[1743978348103,0.12,78845.0,78844.0,0.53082334]
[1743978348317,0.12,78845.0,78844.0,0.65767377]
[1743978348710,0.12,78845.0,78844.0,0.66067377]
[1743978349016,0.09,78845.0,78844.0,0.66999628]
[1743978349417,0.36147508,78874.0,78844.0,0.81999628]
[1743978349620,0.1963,78873.0,78866.0,0.3608]
[1743978349805,0.47783985,78868.0,78867.0,0.03489279]
[1743978350314,0.09,78868.0,78867.0,0.16172471]
[1743978350619,0.2168676,78868.0,78867.0,0.52352471]
[1743978351106,0.2168676,78868.0,78867.0,0.16272471]
[1743978351310,0.2168676,78868.0,78867.0,0.03589279]
[1743978351516,0.2168676,78868.0,78867.0,0.03489279]
[1743978351916,0.2168676,78868.0,78867.0,0.03989279]
[1743978352311,0.3668676,78868.0,78867.0,1e-08]
[1743978352517,0.1268789,78861.0,78860.0,0.00019019]
[1743978352814,0.1968789,78861.0,78860.0,0.00019019]
[1743978353617,0.1968789,78861.0,78860.0,0.00119019]
[1743978353821,0.1968789,78861.0,78860.0,0.00019019]
[1743978354217,0.126903,78846.0,78845.0,0.3763]
[1743978354418,0.1269449,78820.0,78800.0,0.35702273]
[1743978354716,0.02,78820.0,78819.0,0.01039556]
[1743978354923,0.1469449,78820.0,78819.0,0.01039556]
[1743978355111,0.1475849,78820.0,78819.0,0.13786588]
[1743978355311,0.1475849,78820.0,78819.0,0.1284853]
[1743978355515,0.14772409,78820.0,78819.0,0.1284853]
[1743978355718,0.50788409,78820.0,78819.0,0.1284853]
[1743978355919,0.50852409,78820.0,78819.0,0.16757872]
[1743978356122,0.50952409,78820.0,78819.0,0.17257872]
[1743978356421,0.50952409,78820.0,78819.0,0.1334853]
[1743978356620,0.1269562,78813.0,78812.0,9e-08]
[1743978356813,0.52871621,78813.0,78812.0,9e-08]
[1743978357215,0.52871621,78813.0,78812.0,0.03874158]
[1743978357413,0.52871621,78813.0,78812.0,9e-08]
[1743978357815,0.52871621,78813.0,78812.0,0.12688351]
[1743978358218,0.04096001,78813.0,78812.0,0.12688351]
[1743978358420,0.00013919,78820.0,78812.0,0.31648064]
[1743978358615,0.1269546,78814.0,78813.0,0.3909]
[1743978358811,0.12791461,78814.0,78813.0,0.39154]
[1743978359020,0.13791461,78814.0,78813.0,0.39154]
[1743978359323,0.01096001,78814.0,78813.0,0.87922342]
[1743978359523,0.1369546,78814.0,78813.0,0.51842342]
[1743978359728,0.4987546,78814.0,78813.0,0.32672342]
[1743978360228,0.1269562,78813.0,78812.0,0.00600009]
[1743978360425,0.1269836,78796.0,78792.0,0.00015103]
[1743978360721,0.1269836,78796.0,78795.0,9e-08]
[1743978360722,0.52907845,78796.0,78795.0,9e-08]
[1743978361321,0.52907845,78796.0,78795.0,0.12688351]
[1743978361615,0.52907845,78796.0,78795.0,9e-08]
[1743978361824,0.53007845,78796.0,78795.0,0.00500009]
[1743978362023,0.1269948,78789.0,78788.0,0.00019032]
[1743978362222,0.5277948,78789.0,78788.0,0.00019032]
[1743978363331,0.16823481,78789.0,78788.0,0.12711239]
[1743978363535,0.1669948,78789.0,78788.0,0.00019032]
[1743978364029,0.3649948,78789.0,78788.0,0.12711239]
[1743978364232,0.3649948,78789.0,78788.0,0.14504172]
[1743978364437,0.1669948,78789.0,78788.0,0.14504172]
[1743978364734,0.1269948,78789.0,78788.0,0.52331162]
[1743978364919,0.1269948,78789.0,78788.0,0.16251162]
[1743978365124,0.0634948,78793.0,78788.0,0.16251162]
[1743978365426,0.1269932,78790.0,78789.0,0.41679923]
[1743978365823,0.00013485,78796.0,78789.0,0.56679923]
[1743978366031,0.063483,78807.0,78793.0,0.3608]
[1743978366330,0.11206788,78810.0,78802.0,0.3608]
[1743978366533,0.11206788,78810.0,78803.0,0.53360933]
[1743978366723,0.11206788,78810.0,78804.0,0.01792933]
[1743978366924,0.126968,78806.0,78805.0,0.03539923]
[1743978367132,0.1269564,78813.0,78805.0,0.03539923]
[1743978367427,0.1269658,78807.0,78806.0,0.01792933]
[1743978367636,0.1269658,78807.0,78806.0,0.22309923]
[1743978368127,0.1269658,78807.0,78806.0,0.12766189]
[1743978368333,0.1269852,78795.0,78794.0,0.3758]
[1743978369034,0.1269852,78795.0,78794.0,0.50269308]
[1743978369434,0.1269852,78795.0,78794.0,0.04258618]
[1743978369628,0.1269852,78795.0,78771.0,0.0010156]
[1743978369629,0.1269948,78789.0,78788.0,2e-08]
[1743978369824,0.1269948,78789.0,78775.0,0.18985721]
[1743978369825,0.1270158,78776.0,78775.0,0.18985721]
[1743978370030,0.4878158,78776.0,78775.0,0.18985721]
[1743978370330,0.48901581,78776.0,78775.0,0.18985721]
[1743978371030,0.84981581,78776.0,78775.0,0.18985721]
[1743978371536,0.0635137,78769.0,78735.0,0.0635408]
[1743978371733,0.4878368,78763.0,78752.0,0.1974]
[1743978372131,0.4878368,78763.0,78752.0,0.03916852]
[1743978372132,0.1270481,78756.0,78752.0,0.03916852]
[1743978372440,0.4891281,78756.0,78755.0,0.06204048]
[1743978372633,0.4891281,78756.0,78731.0,0.1974]
[1743978372634,0.127061,78748.0,78731.0,0.3875]
[1743978372828,0.489021,78748.0,78738.0,0.03945101]
[1743978373027,0.489021,78748.0,78740.0,0.00019044]
[1743978373228,0.1270723,78741.0,78740.0,0.00019044]
[1743978373432,0.48911231,78741.0,78740.0,0.00019044]
[1743978373938,0.1270965,78726.0,78725.0,0.30179949]
[1743978374135,0.12718681,78726.0,78725.0,0.30179949]
[1743978374329,0.12834681,78726.0,78725.0,0.30179949]
[1743978374527,0.27834681,78726.0,78725.0,0.30179949]
[1743978375139,0.12834681,78726.0,78725.0,0.30179949]
[1743978375845,0.12834681,78726.0,78725.0,0.42882313]
[1743978376348,0.12834681,78726.0,78725.0,0.30179949]
[1743978377344,0.12934681,78726.0,78725.0,0.30179949]
[1743978377756,0.1270997,78724.0,78723.0,0.00101621]
[1743978377946,0.1282597,78724.0,78723.0,0.00101621]
[1743978378948,0.1271078,78719.0,78718.0,5e-08]
[1743978379249,0.12839766,78719.0,78718.0,5e-08]
[1743978380138,0.12839766,78719.0,78718.0,0.01782601]
[1743978380345,0.12839766,78719.0,78718.0,0.16268769]
[1743978380542,0.00228986,78719.0,78718.0,0.28979709]
[1743978380748,0.3608,78743.0,78724.0,0.1270995]
[1743978380951,0.3608,78743.0,78727.0,0.35702273]
[1743978381153,0.3608,78758.0,78737.0,0.3608]
[1743978381453,0.1270755,78739.0,78738.0,0.39233809]
[1743978381641,0.3608,78758.0,78738.0,0.39233809]
[1743978381642,0.0635254,78755.0,78738.0,0.41016483]
[1743978381848,0.1270739,78740.0,78739.0,0.01813809]
[1743978382045,0.1270739,78740.0,78739.0,0.20002853]
[1743978382245,0.063532,78747.0,78739.0,0.41035527]
[1743978382457,0.1270626,78747.0,78746.0,0.3608]
[1743978382643,0.1270626,78747.0,78746.0,0.51301809]
[1743978382955,0.1270626,78747.0,78746.0,0.53084483]
[1743978383157,0.1270626,78747.0,78746.0,0.65784024]
[1743978383751,0.1270626,78747.0,78746.0,0.66756662]
[1743978384050,0.1270626,78747.0,78746.0,0.16296024]
[1743978384452,0.1280626,78747.0,78746.0,0.16296024]
[1743978384652,0.1280626,78747.0,78746.0,0.14482215]
[1743978384857,0.1280626,78747.0,78746.0,0.0180624]
[1743978385050,0.1270739,78740.0,78739.0,0.00019044]
[1743978385249,0.1270739,78740.0,78739.0,4e-08]
[1743978385250,0.4887139,78740.0,78739.0,4e-08]
[1743978385455,0.1279139,78740.0,78739.0,4e-08]
[1743978387450,0.1289139,78740.0,78739.0,4e-08]
[1743978387850,0.1279139,78740.0,78739.0,0.00072004]
[1743978388055,0.1289139,78740.0,78739.0,0.00072004]
[1743978388257,0.1289139,78740.0,78739.0,0.38162004]
[1743978389047,0.1279139,78740.0,78739.0,0.38162004]
[1743978389253,0.1289139,78740.0,78739.0,0.38162004]
[1743978390160,0.1289139,78740.0,78739.0,0.00072004]
[1743978390366,0.1289139,78740.0,78739.0,4e-08]
[1743978390963,0.2789139,78740.0,78739.0,4e-08]
[1743978391158,0.4594139,78740.0,78739.0,4e-08]
[1743978391359,0.3084139,78740.0,78739.0,4e-08]
[1743978391559,0.1289139,78740.0,78739.0,0.36080004]
[1743978391759,0.1289139,78740.0,78739.0,4e-08]
[1743978391959,0.1279139,78740.0,78739.0,4e-08]
[1743978392160,0.1289139,78740.0,78739.0,4e-08]
[1743978392360,0.3249139,78740.0,78739.0,4e-08]
[1743978395271,0.1289139,78740.0,78739.0,4e-08]
[1743978395660,0.1279139,78740.0,78739.0,4e-08]
[1743978395870,0.1289139,78740.0,78739.0,4e-08]
[1743978397163,0.1279139,78740.0,78739.0,0.03578228]
[1743978397371,0.1289139,78740.0,78739.0,0.03578228]
[1743978398267,0.1279139,78740.0,78739.0,0.03578228]
[1743978398474,0.1289139,78740.0,78739.0,0.03578228]
[1743978398862,0.12255845,78740.0,78739.0,0.03578228]
[1743978400470,0.18646145,78761.0,78739.0,0.52358334]
[1743978400772,0.1270513,78754.0,78753.0,0.3608]
[1743978400964,0.1270513,78754.0,78753.0,0.37881736]
[1743978401359,0.1270513,78754.0,78753.0,0.39658224]
[1743978402265,0.18665189,78761.0,78753.0,0.52356072]
[1743978402266,0.18077576,78761.0,78753.0,0.52356072]
[1743978402566,0.07875007,78755.0,78754.0,0.41241736]
[1743978402973,0.08875007,78755.0,78754.0,0.41241736]
[1743978403175,0.44955007,78755.0,78754.0,0.03578224]
[1743978403668,0.08875007,78755.0,78754.0,0.03578224]
[1743978403868,0.1270642,78746.0,78745.0,0.3944]
[1743978404072,0.1370642,78746.0,78745.0,0.41198716]
[1743978404272,0.1370642,78746.0,78745.0,0.21388716]
[1743978404464,0.1270739,78740.0,78739.0,4e-08]
[1743978404661,0.1770739,78740.0,78739.0,4e-08]
[1743978405079,0.1777139,78740.0,78739.0,4e-08]
[1743978405469,0.3678139,78740.0,78739.0,4e-08]
[1743978405980,0.0635534,78720.0,78704.0,0.3608]
[1743978406277,0.1271239,78709.0,78708.0,0.42750984]
[1743978406473,0.1278039,78709.0,78708.0,0.42818984]
[1743978406667,0.1278039,78709.0,78708.0,0.48398213]
[1743978406868,0.1278039,78709.0,78708.0,0.61103321]
[1743978407064,0.1278039,78709.0,78708.0,0.55524092]
[1743978407873,0.1288039,78709.0,78708.0,0.78898984]
[1743978408081,0.1288039,78709.0,78708.0,0.40943569]
[1743978409577,0.1288039,78709.0,78708.0,0.53648677]
[1743978409776,0.1288039,78709.0,78708.0,0.59224629]
[1743978409976,0.00019056,78716.0,78708.0,1.10304629]
[1743978410172,0.1136045,78721.0,78720.0,0.3585451]
[1743978410372,0.1136045,78721.0,78720.0,0.41655952]
[1743978410576,0.1136045,78721.0,78720.0,0.3608]
[1743978410974,0.1136045,78721.0,78720.0,0.48783171]
[1743978411775,0.1146045,78721.0,78720.0,0.48783171]
[1743978411983,0.1146045,78721.0,78720.0,0.12703171]
[1743978412375,0.001,78721.0,78716.0,0.5541]
[1743978412679,0.1271094,78718.0,78717.0,0.12703171]
[1743978412874,0.1271094,78718.0,78717.0,1.27560431]
[1743978413075,0.1175758,78718.0,78717.0,0.91480431]
[1743978413375,0.001,78721.0,78717.0,0.85903171]
[1743978413578,0.1271094,78718.0,78717.0,0.85903171]
[1743978413779,0.1271094,78718.0,78717.0,0.91481417]
[1743978413981,0.1271094,78718.0,78717.0,0.85903171]
[1743978414284,0.1281094,78718.0,78717.0,0.85903171]
[1743978414673,0.1271094,78718.0,78717.0,0.85903171]
[1743978414870,0.1281094,78718.0,78717.0,0.49823171]
[1743978415085,0.12898941,78718.0,78717.0,0.49911171]
[1743978415977,0.12898941,78718.0,78717.0,0.51641186]
[1743978416387,0.00188001,78718.0,78717.0,0.51641186]
[1743978416573,0.1271016,78723.0,78717.0,0.92974716]
[1743978416778,0.0635456,78730.0,78718.0,0.0730353]
[1743978416976,0.0635487,78726.0,78725.0,0.3608]
[1743978417171,0.00064,78726.0,78725.0,0.39645877]
[1743978417376,0.00019056,78728.0,78725.0,0.52349532]
[1743978417581,0.1270949,78727.0,78726.0,0.39353862]
[1743978417783,0.12821491,78727.0,78726.0,0.19963862]
[1743978418089,0.1270965,78726.0,78725.0,7e-08]
[1743978418278,0.1271158,78714.0,78709.0,0.3763]
[1743978418474,0.3377558,78714.0,78713.0,0.00095056]
[1743978420189,0.3377558,78714.0,78713.0,0.36175056]
[1743978420377,0.3377558,78714.0,78713.0,0.48879357]
[1743978420689,0.3387558,78714.0,78713.0,0.48879357]
[1743978420886,0.21164,78714.0,78713.0,0.48879357]
[1743978421081,0.1271055,78721.0,78716.0,0.1271116]
[1743978421281,0.1271042,78722.0,78720.0,0.3608]
[1743978421484,0.1271045,78721.0,78720.0,0.3608]
[1743978421988,0.1271045,78721.0,78720.0,0.48783171]
[1743978423795,0.14352273,78731.0,78720.0,0.63783171]
[1743978423979,0.185,78748.0,78739.0,0.1270746]
[1743978424184,0.3608,78771.0,78741.0,0.7216]
[1743978424478,0.28097225,78762.0,78742.0,0.37497096]
[1743978424681,0.1270631,78747.0,78742.0,0.44621171]
[1743978424882,0.00019056,78752.0,78742.0,0.12703171]
[1743978425083,0.1270686,78744.0,78742.0,0.12779171]
[1743978425296,0.00076,78744.0,78743.0,0.487869]
[1743978425591,0.00019056,78752.0,78749.0,0.1270592]
[1743978425780,0.00019056,78752.0,78751.0,0.4878561]
[1743978425987,0.00019056,78752.0,78751.0,0.3618]
[1743978426293,0.001,78766.0,78758.0,0.127044]
[1743978426488,0.1905502,78765.0,78764.0,0.3608]
[1743978426686,0.1377535,78765.0,78764.0,0.3622]
[1743978427288,0.06351,78774.0,78764.0,0.3622]
[1743978427289,0.12965977,78769.0,78768.0,0.1270287]
[1743978427589,0.7406,78798.0,78768.0,1.82696]
[1743978427788,0.1270127,78778.0,78777.0,0.3608]
[1743978427978,0.1270127,78778.0,78777.0,0.49556]
[1743978428180,0.13857271,78778.0,78777.0,0.13476]
[1743978428386,0.12522853,78778.0,78777.0,0.13476]
[1743978428591,0.12522853,78778.0,78777.0,0.1285143]
[1743978428791,0.12522853,78778.0,78777.0,0.00156]
[1743978429185,0.01156001,78778.0,78777.0,0.00156]
[1743978429492,0.13857261,78778.0,78777.0,0.12849979]
[1743978429893,0.49937261,78778.0,78777.0,0.12849979]
[1743978430192,0.1270239,78771.0,78770.0,0.00019044]
[1743978430391,0.1370239,78771.0,78770.0,0.00175044]
[1743978430588,0.1370239,78771.0,78770.0,0.12869023]
[1743978430779,0.01,78771.0,78770.0,0.48949023]
[1743978431691,0.0635064,78778.0,78770.0,0.62151573]
[1743978431889,0.16,78778.0,78777.0,0.3608]
[1743978432090,0.2870126,78778.0,78777.0,0.49548]
[1743978432301,0.1270126,78778.0,78777.0,0.49548]
[1743978432485,0.000189,78788.0,78777.0,0.49548]
[1743978432688,0.020189,78788.0,78785.0,0.3608]
[1743978432889,0.1269813,78798.0,78791.0,0.1269911]
[1743978433090,0.1269762,78801.0,78795.0,0.1269843]
[1743978433290,0.0634861,78804.0,78796.0,0.13304]
[1743978433597,0.0634787,78813.0,78803.0,0.3608]
[1743978433895,0.0634816,78809.0,78803.0,0.36244]
[1743978434088,0.1369634,78809.0,78804.0,0.181]
[1743978434283,0.01,78809.0,78804.0,0.18256]
[1743978434490,0.01,78809.0,78806.0,0.3608]
[1743978434692,0.01,78809.0,78807.0,0.5598]
[1743978434993,0.1269642,78808.0,78807.0,0.5614]
[1743978435199,0.3228642,78808.0,78807.0,0.5614]
[1743978435490,0.001,78814.0,78807.0,0.69784019]
[1743978435688,0.39294314,78843.0,78807.0,0.69784019]
[1743978435689,0.32948874,78843.0,78813.0,0.3608]
[1743978435896,0.089,78838.0,78836.0,0.3608]
[1743978436095,0.1867817,78860.0,78837.0,0.199]
[1743978436392,0.4767817,78860.0,78859.0,0.3608]
[1743978436603,0.1967817,78860.0,78859.0,0.41223475]
[1743978437098,0.3236622,78860.0,78859.0,0.53904255]
[1743978437300,0.3236622,78860.0,78859.0,0.1283678]
[1743978437499,0.1269014,78847.0,78846.0,1.82448]
[1743978437796,0.1569014,78847.0,78846.0,1.82604]
[1743978438398,0.03,78847.0,78846.0,1.83577832]
[1743978438586,0.1569014,78847.0,78846.0,2.32340703]
[1743978438999,0.1569014,78847.0,78846.0,2.32940703]
[1743978439200,0.1569014,78847.0,78846.0,1.83204]
[1743978439388,0.1269095,78842.0,78836.0,0.04888422]
[1743978439698,0.5377095,78842.0,78836.0,0.04888422]
[1743978440089,0.1769095,78842.0,78836.0,0.04888422]
[1743978440289,0.3635095,78842.0,78836.0,0.04888422]
[1743978440694,0.5507095,78842.0,78836.0,0.04888422]
[1743978440894,0.5507095,78842.0,78841.0,0.00519031]
[1743978441305,0.9115095,78842.0,78841.0,0.00627031]
[1743978441490,0.1269578,78812.0,78811.0,0.3608]
[1743978441692,0.1469578,78812.0,78811.0,0.3608]
[1743978442003,0.1269371,78825.0,78813.0,0.063478]
[1743978442298,0.0634592,78837.0,78824.0,0.3608]
[1743978442500,0.1269095,78842.0,78841.0,0.011]
[1743978442799,0.1569095,78842.0,78841.0,0.011]
[1743978442994,0.5177095,78842.0,78841.0,0.011]
[1743978443189,0.5177095,78842.0,78817.0,0.20634175]
[1743978443190,0.5408,78842.0,78819.0,0.3608]
[1743978443505,0.4877385,78824.0,78823.0,1e-08]
[1743978443697,0.5677385,78824.0,78823.0,1e-08]
[1743978444400,0.9478385,78824.0,78823.0,1e-08]
[1743978444803,0.9488385,78824.0,78823.0,1e-08]
[1743978445001,0.5886785,78824.0,78823.0,1e-08]
[1743978445197,0.5886785,78824.0,78823.0,0.12762572]
[1743978445402,0.2085785,78824.0,78823.0,0.12762572]
[1743978445703,0.2185785,78824.0,78823.0,0.12762572]
[1743978446001,0.09164,78824.0,78823.0,0.13362572]
[1743978446204,0.091,78824.0,78823.0,0.28362572]
[1743978446407,0.1269385,78824.0,78823.0,0.13362572]
[1743978446595,0.1269385,78824.0,78823.0,0.13262572]
[1743978447196,0.00019031,78831.0,78823.0,0.13262572]
[1743978447396,0.00019031,78831.0,78830.0,0.3608]
[1743978447597,0.12711751,78831.0,78830.0,0.36156]
[1743978447797,0.1269272,78831.0,78830.0,0.36156]
[1743978447994,0.0634466,78853.0,78830.0,0.48841445]
[1743978448206,0.04,78850.0,78837.0,0.3608]
[1743978448396,0.00084,78850.0,78840.0,0.35761205]
[1743978448702,0.1269111,78841.0,78840.0,0.35837205]
[1743978448900,0.1269111,78841.0,78840.0,0.00076]
[1743978449092,0.5184711,78841.0,78840.0,1e-07]
[1743978449295,0.1269272,78831.0,78827.0,0.1869]
[1743978449491,0.1569272,78831.0,78830.0,0.36144]
[1743978449696,0.1569272,78831.0,78830.0,0.00064]
[1743978449997,0.1569272,78831.0,78830.0,0.31969445]
[1743978450395,0.1577272,78831.0,78830.0,0.31969445]
[1743978450996,0.1579272,78831.0,78830.0,0.31969445]
[1743978451997,0.1579272,78831.0,78830.0,0.32569445]
[1743978452397,0.1579272,78831.0,78830.0,0.31969445]
[1743978452599,0.1579272,78831.0,78830.0,0.32569445]
[1743978452798,0.1579272,78831.0,78830.0,0.13349445]
[1743978453000,0.1586872,78831.0,78830.0,0.13349445]
[1743978453601,0.5228872,78831.0,78830.0,0.00664]
[1743978454109,0.5218872,78831.0,78830.0,0.006]
[1743978454310,0.5228872,78831.0,78830.0,0.006]
[1743978454496,0.1586872,78831.0,78830.0,0.13285445]
[1743978454700,0.1586872,78831.0,78830.0,0.13361445]
[1743978454902,0.1576872,78831.0,78830.0,0.13361445]
[1743978455097,0.1586872,78831.0,78830.0,0.13361445]
[1743978456406,0.1586872,78831.0,78830.0,0.13861445]
[1743978456800,0.1586872,78831.0,78830.0,0.12761445]
[1743978457000,0.1586872,78831.0,78830.0,0.13261445]
[1743978457505,0.0634477,78851.0,78839.0,0.1269137]
[1743978457704,0.01,78851.0,78840.0,0.55091205]
[1743978457900,0.1269068,78844.0,78840.0,0.55091205]
[1743978458104,0.1269079,78843.0,78840.0,0.55091205]
[1743978458408,0.1269095,78842.0,78841.0,0.12683112]
[1743978458612,0.1369095,78842.0,78841.0,0.12683112]
[1743978458996,0.06363616,78853.0,78841.0,0.12683112]
[1743978459201,0.0634467,78852.0,78843.0,0.1269073]
[1743978459496,0.1268974,78850.0,78840.0,0.55291205]
[1743978459811,0.1268974,78850.0,78842.0,0.12683675]
[1743978460009,0.07164724,78862.0,78845.0,0.3608]
[1743978460201,0.3608,78891.0,78861.0,0.7216]
[1743978460401,0.1268612,78872.0,78871.0,0.3608]
[1743978460608,0.1268612,78872.0,78871.0,0.1925]
[1743978460802,0.1268902,78854.0,78853.0,0.3608]
[1743978461003,0.1375702,78854.0,78853.0,0.36152]
[1743978461309,0.3608,78885.0,78853.0,0.37108251]
[1743978461501,0.1268654,78870.0,78869.0,0.3608]
[1743978461700,0.1268654,78870.0,78869.0,0.36168]
[1743978461701,0.18774541,78870.0,78869.0,0.36168]
[1743978461896,0.06096001,78870.0,78869.0,0.36168]
[1743978462206,0.00096001,78870.0,78869.0,0.61533772]
[1743978462399,0.001,78872.0,78869.0,0.48847172]
[1743978462596,0.001,78872.0,78871.0,0.3608]
[1743978462799,0.0634212,78884.0,78875.0,0.1268558]
[1743978463006,0.0634212,78884.0,78883.0,0.3608]
[1743978463202,0.0634212,78884.0,78883.0,0.0012]
[1743978463203,0.06462121,78884.0,78883.0,0.0012]
[1743978463403,0.00120001,78884.0,78876.0,0.31018851]
[1743978463607,0.25995981,78889.0,78883.0,0.3608]
[1743978463808,0.0634177,78888.0,78884.0,0.1834]
[1743978464007,0.10471021,78885.0,78884.0,0.1846]
[1743978464307,0.00064,78885.0,78884.0,0.1846]
[1743978464603,0.1268234,78896.0,78884.0,0.5070261]
[1743978464809,0.12802261,78896.0,78895.0,0.3608]
[1743978465007,0.12802261,78896.0,78895.0,0.0012]
[1743978465204,0.1268403,78885.0,78884.0,0.1834]
[1743978465404,0.1268403,78885.0,78884.0,0.0022]
[1743978465705,0.1,78900.0,78884.0,0.4252204]
[1743978465909,0.26915314,78924.0,78899.0,0.7216]
[1743978466102,0.0633894,78924.0,78923.0,0.3608]
[1743978466303,0.0633894,78924.0,78923.0,0.49424]
[1743978466711,0.28394256,78930.0,78923.0,0.62100761]
[1743978466904,0.28394256,78930.0,78924.0,0.1887]
[1743978466905,0.22055796,78930.0,78924.0,0.1887]
[1743978467101,0.22055796,78930.0,78926.0,0.1267864]
[1743978467301,0.22055796,78930.0,78927.0,0.3755]
[1743978467500,0.1267839,78928.0,78927.0,0.31668497]
[1743978467703,0.22055796,78930.0,78927.0,0.31668497]
[1743978468007,0.22055796,78930.0,78928.0,0.1868]
[1743978468211,0.22055796,78930.0,78928.0,0.188]
[1743978468407,0.001,78934.0,78933.0,0.1267758]
[1743978468611,0.001,78934.0,78933.0,0.4887758]
[1743978468909,0.001,78934.0,78933.0,0.362]
[1743978469312,0.001,78934.0,78933.0,0.48868892]
[1743978469506,0.001,78934.0,78933.0,0.61546472]
[1743978469706,0.0633736,78951.0,78934.0,0.0633871]
[1743978469908,0.0633709,78955.0,78947.0,0.4875521]
[1743978470108,0.1267405,78955.0,78954.0,0.3608]
[1743978470303,0.3608,78978.0,78954.0,0.36204]
[1743978470507,0.126718,78969.0,78968.0,0.35700276]
[1743978470711,0.1267245,78965.0,78964.0,0.3608]
[1743978470913,0.1267245,78965.0,78964.0,0.362]
[1743978471211,0.2767245,78965.0,78964.0,0.362]